[Event "GrandPrix_29.05"]
[Site "Chess.com"]
[Date "2020.05.29"]
[Round "4"]
[White "LuckyLuka04"]
[Black "grunbergmihai"]
[Result "0-1"]
[WhiteElo "2198"]
[BlackElo "2260"]
[TimeControl "600+2"]
[EndTime "10:57:35 PDT"]
[Termination "grunbergmihai won by resignation"]

1. d4 {[%clk 0:10:01.9]} 1... f5 {[%clk 0:09:46.3]} 2. Nc3 {[%clk 0:09:59.7]}
2... d5 {[%clk 0:09:46.5]} 3. Bg5 {[%clk 0:10:00.1]} 3... c6 {[%clk 0:09:41.5]}
4. e3 {[%clk 0:10:00.2]} 4... Qb6 {[%clk 0:09:36.7]} 5. Rb1 {[%clk 0:09:49.8]}
5... Nd7 {[%clk 0:09:25.6]} 6. Bd3 {[%clk 0:09:47.5]} 6... e6 {[%clk 0:09:24.5]}
7. Nf3 {[%clk 0:09:34.5]} 7... Ngf6 {[%clk 0:09:23.4]} 8. Ne5 {[%clk 0:09:15.4]}
8... Be7 {[%clk 0:08:42.7]} 9. Bf4 {[%clk 0:07:59.6]} 9... O-O {[%clk
0:08:31.7]} 10. Ne2 {[%clk 0:07:33.8]} 10... Qa5+ {[%clk 0:07:44.3]} 11. c3
{[%clk 0:06:56.9]} 11... c5 {[%clk 0:07:23.4]} 12. a3 {[%clk 0:06:32.6]} 12...
c4 {[%clk 0:06:34.5]} 13. Bc2 {[%clk 0:06:29.4]} 13... Nxe5 {[%clk 0:06:15.2]}
14. Bxe5 {[%clk 0:06:20.3]} 14... b5 {[%clk 0:05:57.3]} 15. f3 {[%clk
0:06:00.2]} 15... Qb6 {[%clk 0:05:44.9]} 16. g4 {[%clk 0:05:31.8]} 16... fxg4
{[%clk 0:05:14.9]} 17. Nf4 {[%clk 0:05:27.2]} 17... Nd7 {[%clk 0:04:38.1]} 18.
Kd2 {[%clk 0:03:48.3]} 18... Nxe5 {[%clk 0:04:11.7]} 19. dxe5 {[%clk 0:03:50.2]}
19... Bg5 {[%clk 0:02:45.9]} 20. Qg1 {[%clk 0:02:55.1]} 20... Bxf4 {[%clk
0:02:28.5]} 21. exf4 {[%clk 0:02:53.3]} 21... Rxf4 {[%clk 0:02:03.6]} 22. Qxb6
{[%clk 0:02:23.2]} 22... axb6 {[%clk 0:02:04.5]} 23. fxg4 {[%clk 0:02:13.7]}
23... Rf2+ {[%clk 0:01:58.5]} 24. Kc1 {[%clk 0:01:53.1]} 24... Bb7 {[%clk
0:01:58.7]} 25. Bd1 {[%clk 0:01:47.8]} 25... d4 {[%clk 0:01:53.3]} 26. Rg1
{[%clk 0:01:40]} 26... d3 {[%clk 0:01:42.4]} 27. b4 {[%clk 0:01:38.6]} 27...
Rxa3 {[%clk 0:01:41.2]} 28. Rb2 {[%clk 0:01:38]} 28... Rxc3+ {[%clk 0:01:22.8]}
29. Kb1 {[%clk 0:01:37.9]} 29... d2 {[%clk 0:01:20.6]} 30. Bc2 {[%clk 0:01:33]}
30... Rxc2 {[%clk 0:01:14.1]} 31. Kxc2 {[%clk 0:01:30.3]} 31... d1=Q+ {[%clk
0:01:11.8]} 32. Kxd1 {[%clk 0:01:31.1]} 32... Rxb2 {[%clk 0:01:12.5]} 33. Rg3
{[%clk 0:01:30.4]} 33... Rxh2 {[%clk 0:01:08.3]} 34. Ra3 {[%clk 0:01:31.4]}
34... Bd5 {[%clk 0:01:08.3]} 35. Ra7 {[%clk 0:01:26.3]} 35... c3 {[%clk
0:01:08]} 36. Rc7 {[%clk 0:01:27.3]} 36... c2+ {[%clk 0:01:08.6]} 37. Kc1 {[%clk
0:01:27.3]} 37... Be4 {[%clk 0:01:07.8]} 38. g5 {[%clk 0:01:27]} 38... Rh1+
{[%clk 0:01:08.2]} 0-1

[Event "GrandPrix_29.05"]
[Site "Chess.com"]
[Date "2020.05.29"]
[Round "4"]
[White "SavelievAlexei"]
[Black "Alex_Molchanov"]
[Result "1-0"]
[WhiteElo "2287"]
[BlackElo "2078"]
[TimeControl "600+2"]
[EndTime "10:57:35 PDT"]
[Termination "SavelievAlexei won by resignation"]

1. d4 {[%clk 0:10:01.9]} 1... Nf6 {[%clk 0:09:58.1]} 2. Nc3 {[%clk 0:10:03.2]}
2... d6 {[%clk 0:09:45.7]} 3. e4 {[%clk 0:10:03.4]} 3... g6 {[%clk 0:09:46.4]}
4. h3 {[%clk 0:10:01.5]} 4... Bg7 {[%clk 0:09:46.5]} 5. Nf3 {[%clk 0:10:03]}
5... a6 {[%clk 0:09:45.5]} 6. Bf4 {[%clk 0:10:01]} 6... b5 {[%clk 0:09:40.9]} 7.
Bd3 {[%clk 0:09:52.3]} 7... Bb7 {[%clk 0:09:39.9]} 8. Qe2 {[%clk 0:09:50.8]}
8... O-O {[%clk 0:09:38.2]} 9. O-O {[%clk 0:09:49.2]} 9... c5 {[%clk 0:09:31]}
10. dxc5 {[%clk 0:09:40.1]} 10... dxc5 {[%clk 0:09:31.5]} 11. Rad1 {[%clk
0:09:41.7]} 11... Qc8 {[%clk 0:09:16.7]} 12. e5 {[%clk 0:09:32.1]} 12... Ne8
{[%clk 0:08:53.7]} 13. Be4 {[%clk 0:09:25.4]} 13... Nc6 {[%clk 0:08:47.6]} 14.
Nd5 {[%clk 0:09:17.6]} 14... f5 {[%clk 0:07:26.8]} 15. Nb6 {[%clk 0:05:29.1]}
15... fxe4 {[%clk 0:07:22.1]} 16. Nxc8 {[%clk 0:05:21.4]} 16... exf3 {[%clk
0:07:22.2]} 17. Qxf3 {[%clk 0:05:13.5]} 17... Rxc8 {[%clk 0:07:16.8]} 18. c3
{[%clk 0:04:37.9]} 18... Nc7 {[%clk 0:05:47.8]} 19. Qe3 {[%clk 0:04:34.3]} 19...
Ne6 {[%clk 0:05:37.6]} 20. Bg3 {[%clk 0:04:34.8]} 20... Rfd8 {[%clk 0:05:19.4]}
21. Qe2 {[%clk 0:04:24.9]} 21... Rxd1 {[%clk 0:05:10.3]} 22. Rxd1 {[%clk
0:04:26.8]} 22... Rd8 {[%clk 0:05:11.7]} 23. Rxd8+ {[%clk 0:04:24.5]} 23...
Ncxd8 {[%clk 0:05:11.8]} 24. Qd2 {[%clk 0:03:57.5]} 24... Bc6 {[%clk 0:04:59.1]}
25. h4 {[%clk 0:03:58.3]} 25... Kf7 {[%clk 0:04:46.4]} 26. h5 {[%clk 0:03:55.5]}
26... gxh5 {[%clk 0:04:20.8]} 27. f4 {[%clk 0:03:54.5]} 27... Be4 {[%clk
0:04:17.2]} 28. Qe2 {[%clk 0:03:45.3]} 28... Bc6 {[%clk 0:02:36]} 29. f5 {[%clk
0:03:35.7]} 29... Nf8 {[%clk 0:02:28.4]} 30. Qxh5+ {[%clk 0:03:22.4]} 30... Kg8
{[%clk 0:02:29.4]} 31. Qg4 {[%clk 0:03:15]} 31... Nd7 {[%clk 0:00:25]} 32. f6
{[%clk 0:02:15.6]} 32... exf6 {[%clk 0:00:24.2]} 33. e6 {[%clk 0:02:16.9]} 33...
Nb6 {[%clk 0:00:14.2]} 34. Bc7 {[%clk 0:02:07.9]} 1-0

[Event "GrandPrix_29.05"]
[Site "Chess.com"]
[Date "2020.05.29"]
[Round "4"]
[White "MiroVlasenko"]
[Black "yamalchess"]
[Result "1/2-1/2"]
[WhiteElo "2626"]
[BlackElo "2479"]
[TimeControl "600+2"]
[EndTime "10:57:36 PDT"]
[Termination "Game drawn by repetition"]

1. e4 {[%clk 0:10:01.1]} 1... e5 {[%clk 0:09:59.8]} 2. Nc3 {[%clk 0:10:00.4]}
2... Nc6 {[%clk 0:10:00.5]} 3. Bc4 {[%clk 0:10:00.6]} 3... Nf6 {[%clk
0:09:56.8]} 4. d3 {[%clk 0:10:01.3]} 4... Na5 {[%clk 0:09:56.1]} 5. Nge2 {[%clk
0:10:01.8]} 5... Bc5 {[%clk 0:09:04.5]} 6. O-O {[%clk 0:09:44.3]} 6... Nxc4
{[%clk 0:09:01]} 7. dxc4 {[%clk 0:09:44.8]} 7... h6 {[%clk 0:08:53.9]} 8. Ng3
{[%clk 0:09:35.8]} 8... d6 {[%clk 0:08:51.4]} 9. h3 {[%clk 0:09:24.6]} 9... Be6
{[%clk 0:08:44.9]} 10. b3 {[%clk 0:09:20.8]} 10... a5 {[%clk 0:08:37.7]} 11. Qf3
{[%clk 0:09:12.8]} 11... Bd4 {[%clk 0:08:29.5]} 12. Bd2 {[%clk 0:09:07.2]} 12...
Nh7 {[%clk 0:08:16.7]} 13. Nf5 {[%clk 0:08:48.8]} 13... Bxf5 {[%clk 0:07:49.4]}
14. exf5 {[%clk 0:08:47.8]} 14... c6 {[%clk 0:07:43.4]} 15. Rae1 {[%clk
0:08:45.4]} 15... O-O {[%clk 0:07:18.4]} 16. Ne2 {[%clk 0:08:33.4]} 16... Ba7
{[%clk 0:06:55]} 17. Ng3 {[%clk 0:07:58.5]} 17... Re8 {[%clk 0:06:48.1]} 18. Re4
{[%clk 0:07:08.8]} 18... d5 {[%clk 0:06:00]} 19. cxd5 {[%clk 0:07:01.5]} 19...
cxd5 {[%clk 0:06:00]} 20. Rg4 {[%clk 0:06:16.8]} 20... Nf6 {[%clk 0:05:49.6]}
21. Bxh6 {[%clk 0:06:02.2]} 21... Nxg4 {[%clk 0:05:17.4]} 22. Qxg4 {[%clk
0:06:04.1]} 22... Qf6 {[%clk 0:05:17]} 23. Bg5 {[%clk 0:05:54.1]} 23... Qd6
{[%clk 0:05:04.2]} 24. f6 {[%clk 0:05:46.8]} 24... Qe6 {[%clk 0:04:00.5]} 25.
Nf5 {[%clk 0:04:57.3]} 25... g6 {[%clk 0:02:46.9]} 26. Qh4 {[%clk 0:04:46.5]}
26... Bc5 {[%clk 0:02:07.9]} 27. Nh6+ {[%clk 0:04:28.5]} 27... Kf8 {[%clk
0:02:06.8]} 28. Be3 {[%clk 0:03:58.8]} 28... d4 {[%clk 0:01:45.4]} 29. Ng4
{[%clk 0:03:32.2]} 29... Kg8 {[%clk 0:01:44.3]} 30. Nh6+ {[%clk 0:02:11.4]}
30... Kf8 {[%clk 0:01:44.2]} 31. Ng4 {[%clk 0:01:29.6]} 31... Kg8 {[%clk
0:01:44.6]} 32. Bh6 {[%clk 0:01:00.5]} 32... Qf5 {[%clk 0:01:34.8]} 33. Bg5
{[%clk 0:01:01.7]} 33... Qe6 {[%clk 0:01:31.4]} 34. Nh6+ {[%clk 0:00:59.8]}
34... Kf8 {[%clk 0:01:31.4]} 35. Ng4 {[%clk 0:00:50.2]} 35... Kg8 {[%clk
0:01:32.2]} 36. Nh6+ {[%clk 0:00:51.3]} 36... Kf8 {[%clk 0:01:33.1]} 37. Ng4
{[%clk 0:00:52.6]} 37... Kg8 {[%clk 0:01:34.1]} 1/2-1/2

[Event "GrandPrix_29.05"]
[Site "Chess.com"]
[Date "2020.05.29"]
[Round "4"]
[White "GMStefanova"]
[Black "Armen_Barseghyan"]
[Result "1/2-1/2"]
[WhiteElo "2464"]
[BlackElo "2354"]
[TimeControl "600+2"]
[EndTime "10:57:36 PDT"]
[Termination "Game drawn by repetition"]

1. Nf3 {[%clk 0:10:01.9]} 1... c5 {[%clk 0:09:59.9]} 2. g3 {[%clk 0:10:00.6]}
2... Nf6 {[%clk 0:10:00.6]} 3. Bg2 {[%clk 0:09:59.6]} 3... g6 {[%clk 0:10:01.4]}
4. b3 {[%clk 0:09:56.7]} 4... Bg7 {[%clk 0:10:01.9]} 5. Bb2 {[%clk 0:09:57.1]}
5... O-O {[%clk 0:10:02.6]} 6. c4 {[%clk 0:09:55.1]} 6... d6 {[%clk 0:10:03.2]}
7. O-O {[%clk 0:09:51.6]} 7... e5 {[%clk 0:10:03.7]} 8. Nc3 {[%clk 0:09:39.9]}
8... Nc6 {[%clk 0:10:04.3]} 9. Ne1 {[%clk 0:09:31.6]} 9... Ne8 {[%clk
0:10:00.8]} 10. Nd5 {[%clk 0:09:13.2]} 10... Nc7 {[%clk 0:09:59.2]} 11. Nc2
{[%clk 0:09:03]} 11... f5 {[%clk 0:09:56.7]} 12. f4 {[%clk 0:08:56.3]} 12... Be6
{[%clk 0:09:43.9]} 13. Nce3 {[%clk 0:08:40.6]} 13... Bf7 {[%clk 0:09:40.6]} 14.
Nxc7 {[%clk 0:08:34.7]} 14... Qxc7 {[%clk 0:09:42.5]} 15. Nd5 {[%clk 0:08:34.9]}
15... Qd7 {[%clk 0:09:28.2]} 16. d3 {[%clk 0:08:26.7]} 16... Ne7 {[%clk
0:09:25.9]} 17. Nxe7+ {[%clk 0:08:19.2]} 17... Qxe7 {[%clk 0:09:26.3]} 18. e4
{[%clk 0:08:18.4]} 18... Be6 {[%clk 0:08:32]} 19. fxe5 {[%clk 0:08:12.4]} 19...
dxe5 {[%clk 0:08:32]} 20. exf5 {[%clk 0:08:11.3]} 20... Bxf5 {[%clk 0:08:31.3]}
21. Qe2 {[%clk 0:08:03.9]} 21... Rad8 {[%clk 0:08:26.1]} 22. Bd5+ {[%clk
0:07:49.1]} 22... Kh8 {[%clk 0:08:26.1]} 23. Rae1 {[%clk 0:07:45.1]} 23... Rfe8
{[%clk 0:08:14.6]} 24. g4 {[%clk 0:06:52.6]} 24... Be6 {[%clk 0:07:56.2]} 25.
Bxe5 {[%clk 0:05:11.4]} 25... Bd7 {[%clk 0:06:47.7]} 26. Bxg7+ {[%clk
0:04:40.9]} 26... Qxg7 {[%clk 0:06:48]} 27. Qf2 {[%clk 0:04:27.7]} 27... Bxg4
{[%clk 0:06:30.9]} 28. Qxc5 {[%clk 0:04:20.7]} 28... Bh3 {[%clk 0:06:27.3]} 29.
Rxe8+ {[%clk 0:03:52.6]} 29... Rxe8 {[%clk 0:06:29.2]} 30. Bg2 {[%clk
0:03:29.3]} 30... Bxg2 {[%clk 0:05:36.4]} 31. Kxg2 {[%clk 0:03:28.8]} 31... h5
{[%clk 0:05:36.8]} 32. Qf2 {[%clk 0:03:16.9]} 32... Kh7 {[%clk 0:05:17.6]} 33.
d4 {[%clk 0:02:47.4]} 33... Re4 {[%clk 0:05:17.8]} 34. d5 {[%clk 0:02:47.7]}
34... Qe5 {[%clk 0:04:39.2]} 35. Qf7+ {[%clk 0:02:45]} 35... Kh6 {[%clk
0:04:39.8]} 36. Qf8+ {[%clk 0:01:20.3]} 36... Kg5 {[%clk 0:04:37.2]} 37. Qd8+
{[%clk 0:01:19.2]} 37... Kh6 {[%clk 0:04:37.6]} 38. Qf8+ {[%clk 0:01:18.5]}
38... Kg5 {[%clk 0:04:37.7]} 39. h3 {[%clk 0:00:53.5]} 39... Re3 {[%clk
0:02:29.2]} 40. Qd8+ {[%clk 0:00:49.6]} 40... Kh6 {[%clk 0:02:29.2]} 41. Qf8+
{[%clk 0:00:49.5]} 41... Kg5 {[%clk 0:02:29.8]} 42. Qd8+ {[%clk 0:00:26.3]}
42... Kh6 {[%clk 0:02:28.7]} 43. Qf8+ {[%clk 0:00:27.2]} 43... Kg5 {[%clk
0:02:29.1]} 1/2-1/2

[Event "GrandPrix_29.05"]
[Site "Chess.com"]
[Date "2020.05.29"]
[Round "4"]
[White "OhanyanEminChess"]
[Black "redblizzard"]
[Result "0-1"]
[WhiteElo "2096"]
[BlackElo "1921"]
[TimeControl "600+2"]
[EndTime "10:57:37 PDT"]
[Termination "redblizzard won by resignation"]

1. e4 {[%clk 0:10:01.9]} 1... e5 {[%clk 0:09:59.7]} 2. Nf3 {[%clk 0:10:02.2]}
2... Nc6 {[%clk 0:09:59.3]} 3. Bc4 {[%clk 0:09:58.5]} 3... Nf6 {[%clk
0:09:58.5]} 4. d3 {[%clk 0:09:51.6]} 4... Be7 {[%clk 0:09:56.9]} 5. O-O {[%clk
0:09:50.4]} 5... O-O {[%clk 0:09:57.1]} 6. Re1 {[%clk 0:09:41.5]} 6... d6 {[%clk
0:09:58.1]} 7. h3 {[%clk 0:09:42]} 7... Kh8 {[%clk 0:09:57]} 8. c3 {[%clk
0:09:42.6]} 8... Na5 {[%clk 0:09:34.9]} 9. Bb3 {[%clk 0:09:41.8]} 9... Nxb3
{[%clk 0:09:34.4]} 10. axb3 {[%clk 0:09:39.8]} 10... c6 {[%clk 0:09:20.7]} 11.
Nbd2 {[%clk 0:09:24.3]} 11... Qc7 {[%clk 0:09:20.9]} 12. Nf1 {[%clk 0:09:15.8]}
12... Be6 {[%clk 0:07:51.1]} 13. Ng5 {[%clk 0:08:02]} 13... Bd7 {[%clk
0:07:36.7]} 14. f4 {[%clk 0:07:58.3]} 14... h6 {[%clk 0:06:40.4]} 15. Nf3 {[%clk
0:07:54.8]} 15... Nh5 {[%clk 0:06:21.6]} 16. f5 {[%clk 0:07:45.5]} 16... Nf4
{[%clk 0:04:26.7]} 17. Kh2 {[%clk 0:07:25.2]} 17... d5 {[%clk 0:03:57.7]} 18. g3
{[%clk 0:07:18.6]} 18... dxe4 {[%clk 0:03:46.1]} 19. dxe4 {[%clk 0:06:50.3]}
19... Nh5 {[%clk 0:03:37.7]} 20. Nxe5 {[%clk 0:06:06.4]} 20... Nxg3 {[%clk
0:02:22.6]} 21. Nxg3 {[%clk 0:05:41.8]} 21... Qxe5 {[%clk 0:02:22.8]} 22. Qxd7
{[%clk 0:05:03.5]} 22... Rad8 {[%clk 0:02:22.9]} 23. Qxb7 {[%clk 0:04:32.8]}
23... Bh4 {[%clk 0:00:54.5]} 24. Re3 {[%clk 0:03:49.7]} 24... Bxg3+ {[%clk
0:00:55]} 25. Rxg3 {[%clk 0:03:32.8]} 25... Rd3 {[%clk 0:00:53.3]} 26. Be3
{[%clk 0:01:58.1]} 26... Rxe3 {[%clk 0:00:50.4]} 27. Rg1 {[%clk 0:01:59.5]}
27... Rd8 {[%clk 0:00:16.7]} 28. h4 {[%clk 0:01:55.8]} 28... Rxg3 {[%clk
0:00:14.8]} 29. Rxg3 {[%clk 0:01:56.4]} 29... Rd3 {[%clk 0:00:15.2]} 30. Qc8+
{[%clk 0:01:42.2]} 30... Kh7 {[%clk 0:00:15.8]} 31. Qc7 {[%clk 0:01:41.5]} 31...
Qxc7 {[%clk 0:00:15.7]} 0-1

[Event "GrandPrix_29.05"]
[Site "Chess.com"]
[Date "2020.05.29"]
[Round "4"]
[White "KardashevskiyEvgeny"]
[Black "Alex_Krayz"]
[Result "1/2-1/2"]
[WhiteElo "2068"]
[BlackElo "2154"]
[TimeControl "600+2"]
[EndTime "10:57:42 PDT"]
[Termination "Game drawn by repetition"]

1. d4 {[%clk 0:09:53.4]} 1... Nf6 {[%clk 0:09:59.5]} 2. Nf3 {[%clk 0:09:52.7]}
2... e6 {[%clk 0:09:58.9]} 3. c4 {[%clk 0:09:53.9]} 3... b6 {[%clk 0:09:58.3]}
4. g3 {[%clk 0:09:54]} 4... Ba6 {[%clk 0:09:58.7]} 5. Qb3 {[%clk 0:09:51.1]}
5... Bb7 {[%clk 0:09:41.6]} 6. Bg2 {[%clk 0:09:48]} 6... c5 {[%clk 0:09:37.8]}
7. dxc5 {[%clk 0:09:09]} 7... Bxc5 {[%clk 0:09:34.1]} 8. O-O {[%clk 0:09:09.8]}
8... O-O {[%clk 0:09:31.8]} 9. Nc3 {[%clk 0:09:04.3]} 9... Na6 {[%clk
0:09:22.3]} 10. Rd1 {[%clk 0:08:45.1]} 10... Be7 {[%clk 0:08:58.8]} 11. Bf4
{[%clk 0:08:30.4]} 11... Nc5 {[%clk 0:08:50.3]} 12. Qc2 {[%clk 0:08:28.4]} 12...
d6 {[%clk 0:08:08.8]} 13. Rac1 {[%clk 0:08:14.1]} 13... a6 {[%clk 0:08:04.4]}
14. b4 {[%clk 0:08:11.8]} 14... Nce4 {[%clk 0:08:03.5]} 15. Nxe4 {[%clk
0:08:03.7]} 15... Bxe4 {[%clk 0:07:58.5]} 16. Qb3 {[%clk 0:07:56.1]} 16... Qb8
{[%clk 0:07:32.4]} 17. Ne1 {[%clk 0:07:27.3]} 17... Bxg2 {[%clk 0:07:25.1]} 18.
Kxg2 {[%clk 0:07:27.6]} 18... Qb7+ {[%clk 0:07:24]} 19. f3 {[%clk 0:07:28.9]}
19... d5 {[%clk 0:07:00.8]} 20. c5 {[%clk 0:07:24.1]} 20... Rfc8 {[%clk
0:06:32.2]} 21. Nd3 {[%clk 0:07:20.6]} 21... Nd7 {[%clk 0:06:15.8]} 22. Bd6
{[%clk 0:06:21.2]} 22... Bxd6 {[%clk 0:06:02.2]} 23. cxd6 {[%clk 0:06:23.1]}
23... Rc6 {[%clk 0:06:02.7]} 24. Rxc6 {[%clk 0:05:36.4]} 24... Qxc6 {[%clk
0:06:01.4]} 25. Rc1 {[%clk 0:05:37.3]} 25... Qxd6 {[%clk 0:06:00.8]} 26. Qc3
{[%clk 0:05:37.1]} 26... Kf8 {[%clk 0:05:14.7]} 27. a4 {[%clk 0:05:13.6]} 27...
f6 {[%clk 0:04:44.5]} 28. Qd4 {[%clk 0:04:56.6]} 28... Ke7 {[%clk 0:04:28.2]}
29. Qg4 {[%clk 0:04:39.6]} 29... Kf7 {[%clk 0:04:10.7]} 30. Qh5+ {[%clk
0:04:34.7]} 30... Kg8 {[%clk 0:04:09.6]} 31. b5 {[%clk 0:04:15.8]} 31... axb5
{[%clk 0:04:05.7]} 32. axb5 {[%clk 0:04:17.7]} 32... Nc5 {[%clk 0:03:44.4]} 33.
Nf4 {[%clk 0:03:49]} 33... e5 {[%clk 0:03:17.7]} 34. Nh3 {[%clk 0:03:48.4]}
34... d4 {[%clk 0:03:10.5]} 35. Nf2 {[%clk 0:03:49.7]} 35... Qd5 {[%clk
0:03:05.6]} 36. Ra1 {[%clk 0:03:40.3]} 36... g6 {[%clk 0:02:55]} 37. Rxa8+
{[%clk 0:03:38.2]} 37... Qxa8 {[%clk 0:02:54.3]} 38. Qg4 {[%clk 0:03:38.2]}
38... Qe8 {[%clk 0:02:41.4]} 39. Ne4 {[%clk 0:03:03.4]} 39... Nxe4 {[%clk
0:02:37.8]} 40. fxe4 {[%clk 0:03:01.8]} 40... Kg7 {[%clk 0:02:34.2]} 41. Kf2
{[%clk 0:02:55]} 41... h5 {[%clk 0:02:25.5]} 42. Qh3 {[%clk 0:02:49.6]} 42...
Qxb5 {[%clk 0:01:57.2]} 43. Qe6 {[%clk 0:02:49.8]} 43... Qc5 {[%clk 0:01:57.1]}
44. Qd7+ {[%clk 0:02:46.6]} 44... Kh6 {[%clk 0:01:56]} 45. Qd8 {[%clk
0:02:28.7]} 45... Kg7 {[%clk 0:00:53.8]} 46. Qd7+ {[%clk 0:02:25]} 46... Kg8
{[%clk 0:00:53.7]} 47. Qe6+ {[%clk 0:02:20.6]} 47... Kg7 {[%clk 0:00:49.9]} 48.
Qd7+ {[%clk 0:02:20.5]} 1/2-1/2

[Event "GrandPrix_29.05"]
[Site "Chess.com"]
[Date "2020.05.29"]
[Round "4"]
[White "rasmussvane"]
[Black "SamadovRead"]
[Result "1-0"]
[WhiteElo "2386"]
[BlackElo "1967"]
[TimeControl "600+2"]
[EndTime "10:57:55 PDT"]
[Termination "rasmussvane won by resignation"]

1. Nf3 {[%clk 0:10:01.9]} 1... Nf6 {[%clk 0:09:58.9]} 2. g3 {[%clk 0:10:02.7]}
2... b5 {[%clk 0:09:58.1]} 3. Bg2 {[%clk 0:09:52.9]} 3... Bb7 {[%clk 0:09:57.9]}
4. d4 {[%clk 0:09:53.3]} 4... e6 {[%clk 0:09:57.4]} 5. Bg5 {[%clk 0:09:47.4]}
5... Be7 {[%clk 0:09:52.8]} 6. Qd3 {[%clk 0:09:45.9]} 6... a6 {[%clk 0:09:49.4]}
7. a4 {[%clk 0:09:44]} 7... b4 {[%clk 0:09:39.5]} 8. Nbd2 {[%clk 0:09:44.4]}
8... O-O {[%clk 0:09:28.1]} 9. Bxf6 {[%clk 0:09:44.8]} 9... Bxf6 {[%clk
0:09:27.4]} 10. Ng5 {[%clk 0:09:46.1]} 10... Bxg5 {[%clk 0:09:25.6]} 11. Bxb7
{[%clk 0:09:47.2]} 11... Ra7 {[%clk 0:09:26.6]} 12. Bg2 {[%clk 0:09:42.2]} 12...
d5 {[%clk 0:08:57.5]} 13. O-O {[%clk 0:09:40.5]} 13... Nd7 {[%clk 0:08:46.1]}
14. e4 {[%clk 0:09:33.2]} 14... c6 {[%clk 0:07:25.2]} 15. f4 {[%clk 0:09:32.5]}
15... Be7 {[%clk 0:07:22.5]} 16. Rae1 {[%clk 0:08:35.6]} 16... c5 {[%clk
0:03:41]} 17. exd5 {[%clk 0:07:33.4]} 17... exd5 {[%clk 0:03:40.8]} 18. Kh1
{[%clk 0:05:47.7]} 18... c4 {[%clk 0:03:14.4]} 19. Qf3 {[%clk 0:05:40.2]} 19...
Nf6 {[%clk 0:03:10.7]} 20. c3 {[%clk 0:05:13.7]} 20... bxc3 {[%clk 0:03:01.9]}
21. bxc3 {[%clk 0:05:15.6]} 21... h5 {[%clk 0:02:12.8]} 22. h3 {[%clk
0:05:05.9]} 22... Bd6 {[%clk 0:02:06.6]} 23. Rf2 {[%clk 0:04:56.2]} 23... Re7
{[%clk 0:02:02.5]} 24. Re5 {[%clk 0:04:05.8]} 24... Bxe5 {[%clk 0:01:34.2]} 25.
fxe5 {[%clk 0:04:07.7]} 25... Ne4 {[%clk 0:01:33.6]} 26. Nxe4 {[%clk 0:04:07.4]}
26... dxe4 {[%clk 0:01:35.5]} 27. Qxh5 {[%clk 0:04:00.1]} 27... e3 {[%clk
0:01:01.6]} 28. Re2 {[%clk 0:03:59.2]} 28... g6 {[%clk 0:00:46]} 29. Qg5 {[%clk
0:03:38.7]} 29... Re6 {[%clk 0:00:39.6]} 30. Qxe3 {[%clk 0:03:38]} 30... f6
{[%clk 0:00:35.9]} 31. Qh6 {[%clk 0:03:08.1]} 31... fxe5 {[%clk 0:00:35.6]} 32.
Rxe5 {[%clk 0:03:08.9]} 32... Rxe5 {[%clk 0:00:30]} 33. Qxg6+ {[%clk 0:03:09.1]}
33... Kh8 {[%clk 0:00:31.5]} 34. dxe5 {[%clk 0:03:08]} 34... Qd3 {[%clk
0:00:25.8]} 35. Qh6+ {[%clk 0:02:56.3]} 35... Kg8 {[%clk 0:00:27.2]} 36. Qg5+
{[%clk 0:02:46.7]} 36... Kh8 {[%clk 0:00:26.9]} 37. e6 {[%clk 0:02:39.3]} 37...
Qxc3 {[%clk 0:00:19.5]} 38. e7 {[%clk 0:02:28.5]} 38... Qe1+ {[%clk 0:00:20]}
39. Kh2 {[%clk 0:02:27.9]} 39... Rf2 {[%clk 0:00:05.5]} 40. Qh6+ {[%clk
0:02:17.5]} 40... Kg8 {[%clk 0:00:06.5]} 41. Qg6+ {[%clk 0:02:18.7]} 41... Kh8
{[%clk 0:00:06.8]} 42. e8=Q+ {[%clk 0:02:20]} 1-0

[Event "GrandPrix_29.05"]
[Site "Chess.com"]
[Date "2020.05.29"]
[Round "4"]
[White "Nodar_Lortkipanidze"]
[Black "Koalaskakistis"]
[Result "1-0"]
[WhiteElo "2401"]
[BlackElo "2084"]
[TimeControl "600+2"]
[EndTime "10:57:56 PDT"]
[Termination "Nodar_Lortkipanidze won by resignation"]

1. e4 {[%clk 0:10:01.9]} 1... c5 {[%clk 0:09:57.7]} 2. c3 {[%clk 0:10:03]} 2...
d5 {[%clk 0:09:54.6]} 3. exd5 {[%clk 0:10:04.1]} 3... Nf6 {[%clk 0:09:56.1]} 4.
d4 {[%clk 0:10:05.9]} 4... Nxd5 {[%clk 0:09:52]} 5. c4 {[%clk 0:09:49.7]} 5...
Nb4 {[%clk 0:09:40.9]} 6. a3 {[%clk 0:09:44.6]} 6... N4c6 {[%clk 0:09:28.9]} 7.
d5 {[%clk 0:09:23.9]} 7... Nd4 {[%clk 0:09:29.6]} 8. Be3 {[%clk 0:09:20]} 8...
e5 {[%clk 0:09:29]} 9. dxe6 {[%clk 0:09:17.3]} 9... Bxe6 {[%clk 0:09:25.6]} 10.
Nf3 {[%clk 0:09:11.6]} 10... Nbc6 {[%clk 0:09:18.3]} 11. Nc3 {[%clk 0:08:58.4]}
11... g6 {[%clk 0:09:06.6]} 12. Bxd4 {[%clk 0:07:31.6]} 12... cxd4 {[%clk
0:08:59.7]} 13. Ne4 {[%clk 0:07:31.8]} 13... Bg7 {[%clk 0:08:32.3]} 14. Bd3
{[%clk 0:07:32.4]} 14... O-O {[%clk 0:08:17.1]} 15. h3 {[%clk 0:07:33.4]} 15...
a5 {[%clk 0:08:13.1]} 16. O-O {[%clk 0:07:34.1]} 16... b6 {[%clk 0:08:02.3]} 17.
Re1 {[%clk 0:07:29.7]} 17... h6 {[%clk 0:08:01.7]} 18. Qd2 {[%clk 0:07:19]}
18... a4 {[%clk 0:07:54.6]} 19. Qf4 {[%clk 0:06:56.6]} 19... Na5 {[%clk
0:07:21.7]} 20. Nd6 {[%clk 0:06:46.7]} 20... Qc7 {[%clk 0:07:09.6]} 21. Qg3
{[%clk 0:06:16.5]} 21... Rad8 {[%clk 0:06:48.5]} 22. Rxe6 {[%clk 0:05:35.9]}
22... fxe6 {[%clk 0:06:35.4]} 23. Qxg6 {[%clk 0:05:34.8]} 23... Qxd6 {[%clk
0:06:04.9]} 24. Qh7+ {[%clk 0:05:17.4]} 24... Kf7 {[%clk 0:06:04.7]} 25. Re1
{[%clk 0:05:18.7]} 25... Nc6 {[%clk 0:04:00.6]} 26. Qg6+ {[%clk 0:04:54.7]}
26... Ke7 {[%clk 0:04:01.3]} 27. Qxg7+ {[%clk 0:04:53.8]} 27... Rf7 {[%clk
0:04:02.3]} 28. Qxh6 {[%clk 0:04:49.5]} 28... Kd7 {[%clk 0:02:26.7]} 29. Ng5
{[%clk 0:03:27]} 29... Re7 {[%clk 0:02:21.6]} 30. Ne4 {[%clk 0:03:20.5]} 30...
Qc7 {[%clk 0:02:06.6]} 31. c5 {[%clk 0:03:21]} 31... bxc5 {[%clk 0:01:37.6]} 32.
Nxc5+ {[%clk 0:03:02]} 32... Kc8 {[%clk 0:01:38.5]} 33. Rc1 {[%clk 0:03:01.7]}
33... Qd6 {[%clk 0:00:59.4]} 34. Bb5 {[%clk 0:02:40.2]} 34... Rc7 {[%clk
0:00:44.4]} 35. Qxe6+ {[%clk 0:02:36.7]} 35... Qxe6 {[%clk 0:00:21.8]} 36. Nxe6
{[%clk 0:02:38.6]} 36... d3 {[%clk 0:00:23.4]} 37. Nxd8 {[%clk 0:01:41.8]} 1-0